[Event "Chinese League Division-A 2024"]
[Site "Fuling Chongqing"]
[Date "2024.07.07"]
[Round "10.22"]
[White "Liu, Yan"]
[Black "Li, Shilong"]
[Result "1/2-1/2"]
[ECO "D79"]
[WhiteElo "2573"]
[BlackElo "2407"]
[Annotator "TA"]
[PlyCount "86"]
[EventDate "2024.06.28"]
[EventType "team-tourn"]
[EventCountry "CHN"]
[SourceTitle "playchess.com"]
[Source "ChessBase"]
[SourceQuality "1"]
[TimeControl "40/5400+30:1800+30"]

{[%evp 18,86,15,10,12,0,0,6,18,23,15,9,74,81,96,84,89,79,186,182,181,188,187,190,198,128,133,95,93,99,100,0,13,14,7,7,4,18,5,0,0,0,0,0,25,23,29,4,14,8,52,0,3,10,14,4,4,4,69,69,69,37,69,69,69,69,69,69,69,15,15]} 1. c4 {[%emt 0:00:14]} Nf6 {[%emt 0:00:07]} 2. Nf3 {[%emt 0:01:23]} g6 {[%emt 0:00:05]} 3. g3 {[%emt 0:02:44]} Bg7 {[%emt 0:00:04]} 4. Bg2 {[%emt 0:00:09]} O-O {[%emt 0:00:07]} 5. d4 {[%emt 0:01:57]} c6 {[%emt 0:00:27]} 6. Nc3 {[%emt 0:03:40]} d5 {[%emt 0:00:05]} 7. cxd5 {[%emt 0:02:29]} cxd5 {[%emt 0:00:01]} 8. Ne5 {[%emt 0:00:10]} Nc6 {[%emt 0:00:18]} 9. O-O {[%emt 0:01:17]} Bf5 {[%emt 0:00:32]} 10. Bf4 {[%emt 0:08:05]} Rc8 {[%emt 0:18:23]} 11. Rc1 {[%emt 0:23:47]} Qb6 {[%emt 0:20:54][%csl LRb2,LRd4]} 12. b3 {[%emt 0:11:03]} Qa5 {[%emt 0:03:02]} (12... Qxd4 $2 13. Nxc6 (13. Bxd5 $2 Nxd5 14. Nxd5 Bxe5 $19) 13... Qxd1 14. Nxe7+ Kh8 15. Rfxd1 $18) (12... Nxd4 13. Be3 $18 (13. Bxd5 $2 Rxc3 14. Bxf7+ Rxf7 $19)) 13. Qd2 {[%emt 0:02:16] Threatens to win with Nxc6.} Rfd8 {[%emt 0:01:00]} 14. Rfd1 {[%emt 0:06:12]} Ng4 {[%emt 0:06:46]} (14... Nb4 $11) 15. Nxc6 $16 {[%emt 0:03:30]} Rxc6 {[%emt 0:27:57] [#]} 16. b4 $1 {[%emt 0:10:56]} Qxb4 {[%emt 0:02:05]} 17. Nxd5 {[%emt 0:00:04]} (17. Bxd5 Rcc8 $11 (17... Rxc3 $2 18. Rxc3 Qa4 19. e4 $18)) 17... Qa3 {[%emt 0:13:06] [#]} (17... Qxd2 $16 {was called for.} 18. Bxd2 Rxc1 19. Bxc1 (19. Rxc1 Bxd4 20. Nxe7+ Kf8 $14) 19... Re8) 18. h3 $1 $18 {[%emt 0:03:37] Hoping for Rc5.} Nf6 {[%emt 0:00:23]} 19. Nxf6+ {[%emt 0:01:15]} Rxf6 {[%emt 0:00:02]} 20. Bc7 {[%emt 0:00:15] Against Rb6} ({Worse is} 20. Bxb7 Rb6 21. Bf3 e5 $11) 20... Re8 {[%emt 0:01:13]} 21. e4 {[%emt 0:01:49]} (21. Bxb7 $18 Qa4 22. h4) 21... Bc8 $16 {[%emt 0:00:21]} 22. e5 {[%emt 0:01:24]} Ra6 {[%emt 0:00:27]} 23. d5 {[%emt 0:00:31]} (23. Bd5 {is more complex.} Ra4 24. Rc3 Qb4 25. a3) 23... Qxa2 {[%emt 0:01:05]} 24. d6 {[%emt 0:03:58]} ({Better is} 24. Qd3 $16) 24... Qxd2 {[%emt 0:02:38]} 25. Rxd2 {[%emt 0:00:03] Strongly threatening dxe7.} exd6 {[%emt 0:00:04]} 26. exd6 {[%emt 0:00:07]} Bd7 {[%emt 0:00:02] And now ...Bh6 would win.} 27. Bxb7 {[%emt 0:01:42]} Ra1 {[%emt 0:00:06]} 28. Rdd1 {[%emt 0:02:33]} Rxc1 {[%emt 0:01:20]} 29. Rxc1 {[%emt 0:00:03]} Re2 {[%emt 0:00:16][%cal Oe2d2]} 30. Bc6 {[%emt 0:02:28]} Bxc6 {[%emt 0:00:14]} 31. Rxc6 $11 {[%emt 0:00:03][%mdl 4096] Endgame. Intending d7 and mate. KRB-KRB} Rd2 {[%emt 0:00:02]} 32. Kf1 {[%emt 0:02:14] Ba5 is the strong threat.} Bf8 {[%emt 0:00:53]} 33. Ra6 {[%emt 0:01:48]} f5 {[%emt 0:00:17]} 34. Ke1 {[%emt 0:01:04]} ({Reject} 34. Rxa7 Bxd6 35. Bb6 f4 $11) (34. Bb8 $14 {should be considered.}) 34... Rd5 {[%emt 0:00:02]} 35. Ke2 {[%emt 0:00:14][%cal Oc7b8]} Kf7 {[%emt 0:00:44]} 36. Rxa7 {[%emt 0:00:15]} Ke6 {[%emt 0:00:12]} 37. Ke3 {[%emt 0:01:20]} Bxd6 {[%emt 0:00:47]} (37... h6 $11) 38. Bxd6 $14 {[%emt 0:00:27]} Rxd6 {[%emt 0:00:01]} 39. Rxh7 $11 {[%emt 0:00:06] KR-KR. White is more active.} Kf6 {[%emt 0:00:03]} 40. h4 {[%emt 0:00:00]} Re6+ {[%emt 0:00:00]} 41. Kf3 {[%emt 0:01:09]} Re4 {[%emt 0:00:39]} 42. Kg2 {[%emt 0:03:33]} Ra4 {[%emt 0:00:13]} 43. h5 {[%emt 0:00:13]} (43. Rb7 $14) 43... gxh5 {[%emt 0:00:12] Black defended with fortune.   Weighted Error Value: White=0.14 (very precise) /Black=0.15 (very precise) .  Mistake:       	White=4     	Black=3      Inaccurate:     	---       	Black=2      OK:         	White=11    	Black=17     Best:        	White=2     	Black=1      Strong:       	White=1     	---} 1/2-1/2

[Event "Chinese League Division-A 2024"]
[Site "Fuling Chongqing"]
[Date "2024.07.07"]
[Round "10.23"]
[White "Wu, Yixing"]
[Black "Wang, Chen"]
[Result "1/2-1/2"]
[ECO "D45"]
[WhiteElo "2326"]
[BlackElo "2490"]
[Annotator "RC"]
[PlyCount "53"]
[EventDate "2024.06.28"]
[EventType "team-tourn"]
[EventCountry "CHN"]
[SourceTitle "playchess.com"]
[Source "ChessBase"]
[SourceQuality "1"]
[TimeControl "40/5400+30:1800+30"]

1. d4 {[%emt 0:00:05]} d5 {[%emt 0:02:08]} 2. c4 {[%emt 0:00:49]} e6 {[%emt 0:00:04]} 3. Nf3 {[%emt 0:00:30]} Nf6 {[%emt 0:00:36]} 4. Nc3 {[%emt 0:01:30]} c6 {[%emt 0:04:29]} 5. e3 {[%emt 0:06:57]} Nbd7 {[%emt 0:00:28]} 6. Qc2 {[%emt 0:02:23]} b6 {[%emt 0:05:24]} 7. cxd5 {[%emt 0:07:31]} cxd5 {[%emt 0:00:05]} 8. Nb5 {[%emt 0:00:08]} Bb4+ {[%emt 0:00:09]} 9. Bd2 {[%emt 0:00:22]} Bxd2+ {[%emt 0:00:07]} 10. Nxd2 {[%emt 0:01:39]} O-O {[%emt 0:00:21]} 11. Be2 {[%emt 0:01:07]} Bb7 {[%emt 0:03:39]} 12. O-O {[%emt 0:01:36]} a6 {[%emt 0:03:57]} 13. Nd6 {[%emt 0:02:06]} Qb8 {[%emt 0:00:09]} 14. Nxb7 {[%emt 0:00:11]} Qxb7 {[%emt 0:00:06]} 15. Rac1 {[%emt 0:05:00]} Rfc8 {[%emt 0:00:39]} 16. Qb3 {[%emt 0:00:28]} Rxc1 {[%emt 0:00:37]} 17. Rxc1 {[%emt 0:00:04]} Rc8 {[%emt 0:00:21]} 18. Rc3 {[%emt 0:02:09]} Rxc3 {[%emt 0:07:37]} 19. Qxc3 {[%emt 0:01:18]} Ne8 {[%emt 0:09:45]} 20. Bd3 {[%emt 0:00:56]} h6 {[%emt 0:06:01]} 21. Nf3 {[%emt 0:02:58]} Ndf6 {[%emt 0:12:30]} 22. Kf1 {[%emt 0:02:18]} Nd6 {[%emt 0:00:22]} 23. Ne5 {[%emt 0:01:11]} Nd7 {[%emt 0:00:21]} 24. Nf3 {[%emt 0:00:27]} Nf6 {[%emt 0:00:31]} 25. Ne5 {[%emt 0:00:43]} Nd7 {[%emt 0:00:06]} 26. Nf3 {[%emt 0:00:14]} Nf6 {[%emt 0:00:05]} 27. Ne5 {[%emt 0:00:14]} 1/2-1/2

[Event "Chinese League Division-A 2024"]
[Site "Fuling Chongqing"]
[Date "2024.07.07"]
[Round "10.24"]
[White "Huang, Qian"]
[Black "Wang, Qinxuanyi"]
[Result "1/2-1/2"]
[ECO "D02"]
[WhiteElo "2396"]
[BlackElo "2149"]
[Annotator "TA"]
[PlyCount "93"]
[EventDate "2024.06.28"]
[EventType "team-tourn"]
[EventCountry "CHN"]
[SourceTitle "playchess.com"]
[Source "ChessBase"]
[SourceQuality "1"]
[TimeControl "40/5400+30:1800+30"]

{[%evp 9,93,18,14,9,21,15,15,-9,8,10,10,10,8,7,12,11,9,6,13,13,14,10,13,15,17,11,16,16,18,0,0,0,0,0,0,0,0,-3,0,0,0,7,23,8,10,15,5,0,33,11,15,0,77,67,132,129,141,121,130,106,117,87,127,124,123,123,277,274,276,211,215,49,35,0,0,0,0,0,0,0,0,0,0,0,0,0]} 1. d4 {[%emt 0:02:01]} d5 {[%emt 0:00:07]} 2. Nf3 {[%emt 0:00:08]} Nf6 {[%emt 0:00:09]} 3. Bf4 {[%emt 0:00:06]} Bf5 {[%emt 0:01:06]} 4. e3 {[%emt 0:00:18]} e6 {[%emt 0:00:07]} 5. c4 {[%emt 0:05:43]} Bxb1 {[%emt 0:00:44]} 6. Rxb1 {[%emt 0:00:04]} Bb4+ {[%emt 0:00:14]} 7. Ke2 $1 {[%emt 0:00:02] aiming for c5.} ({Don't blunder} 7. Nd2 $2 Ne4 8. Qa4+ Nc6 $19) 7... Bd6 {[%emt 0:03:52]} 8. Bxd6 {[%emt 0:19:06]} cxd6 {[%emt 0:01:28]} 9. cxd5 {[%emt 0:00:30]} Nxd5 {[%emt 0:00:35]} 10. Qb3 {[%emt 0:01:14]} Qe7 {[%emt 0:02:26]} 11. g3 {[%emt 0:02:15]} O-O {[%emt 0:04:37]} 12. Bg2 {[%emt 0:00:05]} Nc6 {[%emt 0:00:48][%cal Bb8c6,Bc6e7,Be7f5][%mdl 32]} 13. Rhc1 {[%emt 0:04:09]} Nb6 {[%emt 0:01:21]} 14. Qa3 {[%emt 0:06:58]} Rac8 {[%emt 0:02:47]} 15. Ne1 {[%emt 0:12:16]} d5 {[%emt 0:01:15]} 16. Qxe7 {[%emt 0:00:17]} Nxe7 {[%emt 0:00:02]} 17. b3 {[%emt 0:00:55]} Rxc1 {[%emt 0:01:04]} 18. Rxc1 {[%emt 0:00:03]} Rc8 {[%emt 0:00:03] Inhibits Rc7.} 19. Rb1 {[%emt 0:03:53]} Nf5 {[%emt 0:02:33]} 20. Kd2 {[%emt 0:03:58]} Kf8 {[%emt 0:03:46]} 21. Nd3 {[%emt 0:03:48]} Nd7 {[%emt 0:00:11]} 22. a4 {[%emt 0:02:58]} Ke7 {[%emt 0:01:02]} 23. g4 {[%emt 0:10:49]} Nd6 {[%emt 0:00:06]} 24. f3 {[%emt 0:00:11]} b6 {[%emt 0:02:08]} 25. Bf1 {[%emt 0:02:48]} f6 {[%emt 0:01:49]} 26. Be2 {[%emt 0:00:32]} a5 {[%emt 0:03:47]} 27. h4 {[%emt 0:07:47]} e5 {[%emt 0:07:47]} 28. Rg1 {[%emt 0:04:45]} h6 {[%emt 0:00:00]} 29. h5 {[%emt 0:01:06]} Nf7 {[%emt 0:00:03]} 30. Nf2 {[%emt 0:00:29]} Kd6 {[%emt 0:00:58]} (30... exd4 $11 31. exd4 Ng5) 31. Nh1 $1 $16 {[%emt 0:01:11]} Ke7 {[%emt 0:13:56]} (31... exd4 $14 32. exd4 f5) 32. Ng3 {[%emt 0:01:05]} Nd6 {[%emt 0:00:08]} 33. Nf5+ $1 {[%emt 0:01:33]} Nxf5 {[%emt 0:00:06]} 34. gxf5 {[%emt 0:00:01][%mdl 4096] Endgame. KRB-KRN} Kf7 {[%emt 0:03:48]} 35. Bb5 {[%emt 0:00:07]} Nf8 {[%emt 0:02:42]} 36. e4 {[%emt 0:01:29]} Nh7 {[%emt 0:00:25] [#]} 37. Bd7 $1 {[%emt 0:01:02] White is more active.} Rc7 {[%emt 0:03:24] [#]} (37... Rd8 $16 {is a better defense.} 38. Be6+ Kf8) 38. Be6+ $1 $18 {[%emt 0:00:04]} Ke8 {[%emt 0:00:05]} 39. exd5 {[%emt 0:02:52]} ({Weaker is} 39. Bxd5 Ng5 40. Rg3 Ke7 $14) 39... Ng5 {[%emt 0:01:38]} 40. Kd3 $2 {[%emt 0:00:00]} ({Only move:} 40. d6 $18 Rc6 41. d7+ Ke7 42. Ke2 (42. d5 Nxf3+ 43. Kd3 Rc3+ 44. Kxc3 Nxg1 $16)) 40... Ke7 $1 $14 {[%emt 0:00:00]} 41. Rf1 {[%emt 0:27:25]} Kd6 {[%emt 0:05:59] The position is equal.} 42. dxe5+ {[%emt 0:00:22]} fxe5 {[%emt 0:00:06]} 43. Kd2 {[%emt 0:00:11]} Nh3 {[%emt 0:08:16]} 44. Rb1 {[%emt 0:01:13]} (44. f6 $5 Ng5 $8 45. fxg7 Rxg7 46. Ke3 $11) 44... Ng5 $1 {[%emt 0:18:06]} 45. Rf1 {[%emt 0:00:06]} Nh3 {[%emt 0:00:03]} 46. Rb1 {[%emt 0:00:05] And now b4 would win.} (46. f6 $5 Ng5 $8 47. fxg7 Rxg7 48. Bc8 $11) 46... Ng5 $1 {[%emt 0:00:01]} 47. Rf1 {[%emt 0:00:50] Weighted Error Value: White=0.10 (very precise) /Black=0.12 (very precise) .  Missed win:     	White=1     	---        Mistake:       	---       	Black=3      Inaccurate:     	White=1     	Black=2      OK:         	White=11    	Black=7      Best:        	White=2     	Black=7      Strong:       	White=5     	Black=3} 1/2-1/2

[Event "Chinese League Division-A 2024"]
[Site "Fuling Chongqing"]
[Date "2024.07.07"]
[Round "10.25"]
[White "Liu, Manli"]
[Black "Wang, Chuqiao"]
[Result "1/2-1/2"]
[ECO "C93"]
[WhiteElo "2056"]
[BlackElo "2278"]
[Annotator "RC"]
[PlyCount "95"]
[EventDate "2024.06.28"]
[EventType "team-tourn"]
[EventCountry "CHN"]
[SourceTitle "playchess.com"]
[Source "ChessBase"]
[SourceQuality "1"]
[TimeControl "40/5400+30:1800+30"]

1. e4 {[%emt 0:00:03]} e5 {[%emt 0:00:09]} 2. Nf3 {[%emt 0:00:07]} Nc6 {[%emt 0:00:04]} 3. Bb5 {[%emt 0:00:06]} a6 {[%emt 0:00:14]} 4. Ba4 {[%emt 0:00:13]} Nf6 {[%emt 0:00:10]} 5. O-O {[%emt 0:00:14]} Be7 {[%emt 0:00:16]} 6. Re1 {[%emt 0:00:07]} b5 {[%emt 0:00:10]} 7. Bb3 {[%emt 0:00:06]} d6 {[%emt 0:00:26]} 8. c3 {[%emt 0:00:14]} O-O {[%emt 0:00:15]} 9. h3 {[%emt 0:00:11]} Bb7 {[%emt 0:00:49]} 10. d4 {[%emt 0:00:36]} Re8 {[%emt 0:00:13]} 11. Nbd2 {[%emt 0:00:09]} Bf8 {[%emt 0:00:09]} 12. a3 {[%emt 0:00:21]} h6 {[%emt 0:01:46]} 13. Bc2 {[%emt 0:02:02]} Nb8 {[%emt 0:01:08]} 14. a4 {[%emt 0:04:45]} Nbd7 {[%emt 0:03:27]} 15. Bd3 {[%emt 0:03:54]} c6 {[%emt 0:21:43]} 16. b3 {[%emt 0:06:30]} g6 {[%emt 0:01:41]} 17. Bb2 {[%emt 0:00:39]} Bg7 {[%emt 0:00:26]} 18. Qc2 {[%emt 0:00:33]} Qe7 {[%emt 0:07:15]} 19. axb5 {[%emt 0:00:47]} axb5 {[%emt 0:00:34]} 20. dxe5 {[%emt 0:02:32]} Nxe5 {[%emt 0:01:24]} 21. Nxe5 {[%emt 0:00:09]} dxe5 {[%emt 0:00:07]} 22. b4 {[%emt 0:00:52]} Rxa1 {[%emt 0:01:25]} 23. Rxa1 {[%emt 0:00:06]} Ra8 {[%emt 0:00:16]} 24. Rxa8+ {[%emt 0:00:53]} Bxa8 {[%emt 0:00:05]} 25. Nb3 {[%emt 0:04:09]} Nh5 {[%emt 0:03:45]} 26. g3 {[%emt 0:01:50]} Qa7 {[%emt 0:02:47]} 27. Kh2 {[%emt 0:01:12]} Nf6 {[%emt 0:03:28]} 28. Bc1 {[%emt 0:00:39]} Nd7 {[%emt 0:17:11]} 29. Be3 {[%emt 0:00:29]} Qb8 {[%emt 0:00:51]} 30. Be2 {[%emt 0:04:34]} h5 {[%emt 0:02:57]} 31. Qd2 {[%emt 0:02:25]} Qc7 {[%emt 0:01:49]} 32. Qa2 {[%emt 0:01:33]} Qb8 {[%emt 0:01:30]} 33. c4 {[%emt 0:12:03]} Bf8 {[%emt 0:02:48]} 34. c5 {[%emt 0:04:14]} Nf6 {[%emt 0:02:47]} 35. Bf3 {[%emt 0:03:31]} Bb7 {[%emt 0:02:27]} 36. Na5 {[%emt 0:00:31]} Ba8 {[%emt 0:00:57]} 37. Bg2 {[%emt 0:10:11]} Qe8 {[%emt 0:03:35]} 38. Qa1 {[%emt 0:06:42]} Bg7 {[%emt 0:03:39]} 39. Qd1 {[%emt 0:03:02]} Bf8 {[%emt 0:04:42]} 40. Qd3 {[%emt 0:00:00]} Qd7 {[%emt 0:00:00]} 41. Qc3 {[%emt 0:24:45]} Bg7 {[%emt 0:02:57]} 42. Bf3 {[%emt 0:07:09]} Ne8 {[%emt 0:02:40]} 43. g4 {[%emt 0:01:49]} hxg4 {[%emt 0:01:18]} 44. hxg4 {[%emt 0:00:11]} Kf8 {[%emt 0:06:14]} 45. g5 {[%emt 0:03:20]} Nc7 {[%emt 0:10:02]} 46. Kg3 {[%emt 0:00:16]} Ne6 {[%emt 0:02:38]} 47. Bg4 {[%emt 0:00:20]} Qe7 {[%emt 0:01:52]} 48. Bxe6 {[%emt 0:01:24]} 1/2-1/2

[Event "Chinese League Division-A 2024"]
[Site "Fuling Chongqing"]
[Date "2024.07.07"]
[Round "10.26"]
[White "Wang, Hao"]
[Black "Chen, Yuan"]
[Result "1-0"]
[ECO "C02"]
[WhiteElo "2702"]
[BlackElo "2294"]
[Annotator "TA"]
[PlyCount "86"]
[EventDate "2024.06.28"]
[EventType "team-tourn"]
[EventCountry "CHN"]
[SourceTitle "playchess.com"]
[Source "ChessBase"]
[SourceQuality "1"]
[TimeControl "40/5400+30:1800+30"]

{[%evp 15,86,34,31,30,37,34,56,16,17,20,34,25,19,25,17,8,33,1,13,0,0,0,0,0,11,0,0,0,0,0,8,20,8,0,0,0,0,0,0,0,0,0,0,0,0,7,121,132,310,284,332,343,343,325,341,375,387,304,399,422,408,370,695,366,455,0,650,605,754,733,881,844,795]} 1. e4 {[%emt 0:00:04]} e6 {[%emt 0:00:41]} 2. d4 {[%emt 0:00:56]} d5 {[%emt 0:00:08]} 3. e5 {[%emt 0:01:26]} c5 {[%emt 0:00:09]} 4. c3 {[%emt 0:00:04]} Bd7 {[%emt 0:01:12]} 5. Nf3 {[%emt 0:00:16]} Nc6 {[%emt 0:02:37]} 6. Be2 {[%emt 0:01:39]} Nge7 {[%emt 0:04:11]} 7. O-O {[%emt 0:00:10]} Nf5 {[%emt 0:01:01]} 8. dxc5 {[%emt 0:02:27]} Bxc5 {[%emt 0:00:51]} 9. Bd3 {[%emt 0:00:13]} Nh4 {[%emt 0:28:57]} 10. Nbd2 {[%emt 0:04:03]} a5 {[%emt 0:01:09]} 11. g3 {[%emt 0:16:58] White is slightly better.} Nxf3+ {[%emt 0:04:31]} 12. Nxf3 {[%emt 0:02:17]} h6 {[%emt 0:11:30]} 13. Bc2 {[%emt 0:14:22]} b5 {[%emt 0:05:37]} 14. Re1 {[%emt 0:04:01]} Qb6 {[%emt 0:03:55]} 15. Be3 {[%emt 0:01:10]} Rc8 {[%emt 0:10:43]} 16. h4 {[%emt 0:04:13]} b4 {[%emt 0:08:06]} 17. h5 {[%emt 0:02:38]} Bxe3 {[%emt 0:08:55]} 18. Rxe3 {[%emt 0:00:14]} bxc3 {[%emt 0:01:23]} 19. bxc3 {[%emt 0:00:19]} Qc5 {[%emt 0:00:08]} 20. Ba4 {[%emt 0:17:32]} O-O {[%emt 0:02:58]} 21. Bc2 {[%emt 0:01:57]} Ne7 {[%emt 0:00:06]} 22. Nd4 {[%emt 0:16:52]} Nf5 {[%emt 0:00:16]} 23. Bxf5 {[%emt 0:00:16]} exf5 {[%emt 0:00:02]} 24. Qd2 {[%emt 0:00:07]} a4 {[%emt 0:00:59]} 25. Rb1 {[%emt 0:00:42]} Rb8 {[%emt 0:00:37]} 26. Rb4 {[%emt 0:00:28]} Rfc8 {[%emt 0:00:53] [#] ...Rxb4 would now be deadly.} 27. Re1 {[%emt 0:04:04][%cal Be3e1,Be1d1,Bd1b1][%mdl 32]} Rxb4 {[%emt 0:01:31]} 28. cxb4 {[%emt 0:00:04][%cal Bc3b4,Bb4b5,Bb5b6][%mdl 32]} Qc3 {[%emt 0:00:25]} 29. Qxc3 {[%emt 0:00:41]} Rxc3 $11 {[%emt 0:00:02][%mdl 4096] Endgame. KRB-KRN} 30. Rd1 {[%emt 0:00:06]} Rc7 {[%emt 0:01:24]} (30... Kf8 $11 {remains equal.}) 31. b5 $16 {[%emt 0:00:48] aiming for Rb1. White is more active.} Rb7 $2 {[%emt 0:00:13] [#]} (31... Rc4 $16 {was necessary.}) 32. Rb1 $18 {[%emt 0:00:08]} Kf8 {[%emt 0:00:17]} 33. f4 {[%emt 0:02:32]} Ke7 {[%emt 0:00:05]} 34. b6 {[%emt 0:00:50]} Kd8 {[%emt 0:00:11]} 35. Kf2 {[%emt 0:00:10]} Rb8 {[%emt 0:01:23]} 36. Ke3 {[%emt 0:00:28]} Rb7 {[%emt 0:00:33]} 37. a3 {[%emt 0:00:47]} Rb8 {[%emt 0:00:25]} 38. Kd3 {[%emt 0:01:43]} Rc8 $2 {[%emt 0:00:38]} (38... Ke7 39. Ne2 Kf8) 39. Ne2 {[%emt 0:00:30]} Rb8 {[%emt 0:00:33]} 40. Nd4 {[%emt 0:00:00]} (40. Kd4 $142) 40... Rc8 $1 {[%emt 0:00:00]} 41. Nb5 {[%emt 0:02:28] White is clearly winning.} Rb8 {[%emt 0:05:46]} 42. Nd6 {[%emt 0:00:26]} Ke7 {[%emt 0:01:30]} 43. b7 {[%emt 0:00:41]} g6 {[%emt 0:00:00] Weighted Error Value: White=0.31/Black=0.33.  Loses game:     	---       	Black=1      Mistake:       	---       	Black=2      Inaccurate:     	White=3     	Black=1      OK:         	White=14    	Black=9      Best:        	White=3     	Black=1      Strong:       	---       	Black=1} 1-0

[Event "Chinese League Division-A 2024"]
[Site "Fuling Chongqing"]
[Date "2024.07.07"]
[Round "10.27"]
[White "Lu, Shanglei"]
[Black "Zhao, Jun"]
[Result "1/2-1/2"]
[ECO "C65"]
[WhiteElo "2606"]
[BlackElo "2538"]
[Annotator "TA"]
[PlyCount "57"]
[EventDate "2024.06.28"]
[EventType "team-tourn"]
[EventCountry "CHN"]
[SourceTitle "playchess.com"]
[Source "ChessBase"]
[SourceQuality "1"]
[TimeControl "40/5400+30:1800+30"]

{[%evp 9,57,-1,12,4,24,12,6,5,4,5,4,3,26,20,20,11,20,8,16,3,10,0,0,0,12,6,7,10,18,16,18,17,17,18,29,17,16,17,66,14,14,14,15,8,16,0,0,0,20,0]} 1. e4 {[%emt 0:00:03]} e5 {[%emt 0:00:21]} 2. Nf3 {[%emt 0:00:03]} Nc6 {[%emt 0:00:10]} 3. Bb5 {[%emt 0:00:24]} Nf6 {[%emt 0:00:39][%cal Bg8f6,Bf6d7,Bd7f8,Bf8e6][%mdl 32]} 4. d3 {[%emt 0:00:23]} d6 {[%emt 0:01:04]} 5. c4 {[%emt 0:03:44]} Bg4 {[%emt 0:09:44]} 6. Be3 {[%emt 0:01:00]} Nd7 {[%emt 0:02:49]} 7. Bxc6 {[%emt 0:32:23]} bxc6 {[%emt 0:00:07]} 8. h3 {[%emt 0:00:31]} Bxf3 {[%emt 0:01:38]} 9. Qxf3 {[%emt 0:00:05]} Be7 {[%emt 0:07:11]} 10. Nc3 {[%emt 0:00:06]} Nf8 {[%emt 0:04:38]} 11. b4 {[%emt 0:02:28]} Ne6 {[%emt 0:03:06]} 12. O-O {[%emt 0:00:23]} O-O {[%emt 0:00:38]} 13. a4 {[%emt 0:00:12]} a6 {[%emt 0:00:30]} 14. Qg4 {[%emt 0:08:28]} Bg5 {[%emt 0:09:58]} 15. b5 {[%emt 0:04:38]} Bxe3 {[%emt 0:13:10]} 16. fxe3 {[%emt 0:00:04]} axb5 {[%emt 0:17:44]} 17. axb5 {[%emt 0:00:37]} Rxa1 {[%emt 0:00:15]} 18. Rxa1 {[%emt 0:00:04][%cal Bf1a1,Ba1a6,Ba6c6][%mdl 32]} cxb5 {[%emt 0:00:41]} 19. cxb5 {[%emt 0:01:32]} Qb8 {[%emt 0:01:22]} 20. Ra6 {[%emt 0:21:28]} Nc5 {[%emt 0:03:08][%csl LRa6,LRd3]} 21. Rc6 {[%emt 0:00:21]} Ne6 {[%emt 0:00:04]} 22. Kh2 {[%emt 0:06:56] Black is weak on the light squares} h6 {[%emt 0:05:32]} 23. Qd1 {[%emt 0:05:56]} Qa7 {[%emt 0:02:05]} (23... Qb7 $11 {is more appropriate.}) 24. Qc1 {[%emt 0:02:34]} (24. Nd5 $14) 24... Rb8 $11 {[%emt 0:01:04] The position is equal.} 25. Ra6 {[%emt 0:02:06]} Qc5 {[%emt 0:00:15]} 26. Ra4 {[%emt 0:00:20]} Qb6 {[%emt 0:02:21]} ({Don't blunder} 26... Rxb5 $2 27. Ra8+ (27. Rc4 Qb6 $16) 27... Nf8 28. Qa1 $18) 27. Ra6 {[%emt 0:01:28]} Qc5 {[%emt 0:00:06]} 28. Rc6 {[%emt 0:00:30]} Qa7 {[%emt 0:01:30]} 29. Ra6 {[%emt 0:01:26] Weighted Error Value: White=0.09 (flawless) /Black=0.06 (flawless) .  Mistake:       	White=1     	Black=1      OK:         	White=6     	Black=13} 1/2-1/2